Cogmind - Beta 13 X1 @@@ ROGUE MODE // 2023.09.25 @ 16:41:10 Player: youngster Result: Destroyed by D-53 Grenadier with Mini Grenade Launcher Performance ------------- Evolutions (0) 0 Regions Visited (2) 400 Robots Destroyed (20) 100 Value Destroyed (396) 396 Prototype IDs (0) 0 Alien Tech Used (0) 0 Bonus (0) 0 TOTAL SCORE: 896 Bonus ------- None Cogmind --------- Core Integrity 0/250 Matter 184/300 Energy 100/100 System Corruption 0% Temperature Cool (0) Movement Rolling (100) Location -10/Mines Parts ------- > --- POWER (1) -------- (None) > --- PROPULSION (2) --- Compact Wheel > --- UTILITY (2) ------ Medium Storage Unit > --- WEAPON (2) ------- (None) > --- INVENTORY (10) --- Medium Matter Pod (100) Improved Terrain Scanner Light Assault Rifle Light Assault Rifle Datajack Peak State ------------ > --- POWER ------------ Improved Ion Engine > --- PROPULSION ------- Light Treads Light Treads > --- UTILITY ---------- Medium Storage Unit Improved Terrain Scanner > --- WEAPON ----------- Assault Rifle Light Assault Rifle > --- INVENTORY -------- Improved Ion Engine Improved Ion Engine Light Treads Compact Wheel Seismic Detector Weapon Shielding Medium Laser Grenade Launcher Grenade Launcher Datajack [Rating: 11] Favorites ----------- Power Improved Ion Engine Engine Improved Ion Engine Propulsion Light Treads Treads Light Treads Wheel Compact Wheel Utility Seismic Detector Device Seismic Detector Storage Medium Storage Unit Protection Weapon Shielding Weapon Light Assault Rifle Ballistic Gun Light Assault Rifle Launcher Grenade Launcher Build | -11 -10 -10 ------- Run | Jun Mat Min Slots Evolved . | . . . Power . | . . . Propulsion . | . . . Utility . | . . . Weapon . | . . . Parts Attached 36 | 7 13 16 Power 3 | 1 1 1 Engine 3 | 1 1 1 Core . | . . . Reactor . | . . . Propulsion 6 | 2 1 3 Treads 5 | 2 1 2 Leg . | . . . Wheel 1 | . . 1 Hover . | . . . Flight . | . . . Utility 10 | 2 7 1 Device 7 | 1 6 . Storage 2 | 1 1 . Processor . | . . . Hackware . | . . . Protection 1 | . . 1 Artifact . | . . . Weapon 17 | 2 4 11 Energy Gun . | . . . Energy Cannon . | . . . Ballistic Gun 9 | 2 2 5 Ballistic Cannon . | . . . Launcher 8 | . 2 6 Special Weapon . | . . . Impact Weapon . | . . . Slashing Weapon . | . . . Piercing Weapon . | . . . Special Melee Weapon . | . . . Unidentified Prototypes . | . . . Parts Lost 11 | . . 11 Power 2 | . . 2 Propulsion 4 | . . 4 Utility 2 | . . 2 Weapon 3 | . . 3 Highest Loss Streak 9 | . . 9 To Critical Strikes . | . . . Average Slot Usage (%) 98 | . 99 97 Engine 14 | . 14 14 Treads 27 | . 27 26 Device 12 | . 14 7 Storage 14 | . 14 14 Protection 1 | . . 6 Ballistic Gun 27 | . 27 25 Naked Turns . | . . . Heaviest Build 24 | 12 22 24 Greatest Support 40 | 40 40 40 Greatest Overweight (x) 1 | . . 1 Average Overweight (x) . | . . . Largest Inventory Capacity 10 | 8 10 10 Average Capacity 9 | 7 9 10 Most Carried 10 | 5 10 10 Average Carried 8 | 3 8 9 Final Capacity 10 | 8 10 10 Final Carried 10 | 5 10 5 Class Distribution -------------------- 100% | Mutant Dominant Class ---------------- Mutant | -10/Materials Mutant | -10/Mines Resources | -11 -10 -10 ----------- Run | Jun Mat Min Matter Collected 896 | 275 428 193 Remotely . | . . . Salvage Created 631 | 76 385 170 Parts 47 | 8 30 9 Haulers Intercepted 2 | . 2 . Recyclers Shooed 3 | 1 2 . Parts Field Recycled . | . . . Retrieved Matter . | . . . Parts Self-Destructed . | . . . Prevented . | . . . Kills | -11 -10 -10 ------- Run | Jun Mat Min Combat Hostiles Destroyed 27 | . 9 18 Guns 9 | . 6 3 AOE 18 | . 3 15 Classes Destroyed 7 | 1 5 1 Builder 2 | . 1 1 Tunneler 4 | 3 . 1 Hauler 2 | . 2 . Mechanic 1 | . 1 . Swarmer 3 | . 3 . Grunt 8 | . 6 2 Assembled 16 | . . 16 Best Kill Streak 15 | 1 4 15 Combat Bots Only 15 | . 3 15 Max Kills in Single Turn 6 | 1 2 6 Gunslinging . | . . . Exploded 6 | . 1 6 Melee . | . . . Uniques/NPCs Destroyed . | . . . Combat | -11 -10 -10 -------- Run | Jun Mat Min Damage Taken 1545 | . 325 1220 Core 258 | . 47 211 Absorbed by Shields . | . . . Redirected to Shielding 50 | . . 50 Regen/Repaired (Parts) 134 | . 134 . Core Remaining (%) 100 | 100 . . Volleys Fired 78 | 17 39 22 Largest 2 | 2 2 2 Hottest 60 | 40 40 60 Shots Fired 149 | 34 73 42 Gun 133 | 34 69 30 Cannon . | . . . Launcher 16 | . 4 12 Special . | . . . Kinetic 133 | 34 69 30 Thermal . | . . . Explosive 16 | . 4 12 Electromagnetic . | . . . Robot Hit Streak 12 | 3 12 7 Robot Miss Streak 4 | 4 3 3 Penetration Max . | . . . Secondary Targets . | . . . Shots Hit Robots 92 | 19 49 24 Core Hits 86 | 6 31 49 Critical Kills . | . . . Critical Parts Destroyed 1 | . . 1 Critical Strikes 1 | . . 1 Destroy 1 | . . 1 Melee Attacks . | . . . Impact . | . . . Slashing . | . . . Piercing . | . . . Sneak Attacks . | . . . Combat Hostiles . | . . . Follow-up Attacks . | . . . Damage Inflicted 2249 | 186 832 1231 Guns 921 | 186 526 209 Cannons . | . . . Explosions 1305 | . 286 1019 Melee . | . . . Ramming 23 | . 20 3 Kinetic 921 | 186 526 209 Thermal . | . . . Explosive 1305 | . 286 1019 Electromagnetic . | . . . Impact . | . . . Slashing . | . . . Piercing . | . . . Highest Corruption . | . . . Average Corruption . | . . . Corruption Purged . | . . . Corruption Blocked . | . . . Overload Shots . | . . . Overflow Damage 11 | . . 11 Projectiles . | . . . Explosions 11 | . . 11 Melee . | . . . Knockbacks . | . . . Impact . | . . . Kinetic . | . . . Secondary . | . . . Self-Inflicted Damage 36 | . . 36 Shots 1 | . . 1 Rammed 8 | . 7 1 Targets Rammed 8 | . 7 1 Kicked . | . . . Crushed . | . . . Highest Temperature 23 | . 18 23 Average Temperature 6 | . 6 6 Received Heat Transfer 227 | . 153 74 Siege Activations . | . . . Robots Corrupted . | . . . Combat Hostiles . | . . . Parts Fried . | . . . Impact Corruptions . | . . . Robots Melted . | . . . Combat Hostiles . | . . . Parts Melted . | . . . Heat Transferred . | . . . Parts Sabotaged . | . . . Parts Stolen . | . . . Parts Stripped . | . . . Power Chain Reactions . | . . . Missiles Intercepted . | . . . Alert | -11 -10 -10 ------- Run | Jun Mat Min Peak Influence 218 | 15 218 123 Initial 40 | . 9 40 Average 84 | 5 104 61 Maximum Alert Level 1 | . 1 . Low Security (%) 91 | 100 86 100 Level 1 8 | . 13 . Level 2 . | . . . Level 3 . | . . . Level 4 . | . . . Level 5 . | . . . High Security . | . . . Max Security . | . . . Squads Dispatched 3 | . 3 . Investigation 1 | . 1 . Extermination . | . . . Reinforcement 2 | . 2 . Assault . | . . . Garrison . | . . . Intercept . | . . . Searches Triggered . | . . . Construction Impeded . | . . . Haulers Reinforced . | . . . Active Scanning Responses . | . . . Cargo Convoy Interrupts . | . . . Stealth | -11 -10 -10 --------- Run | Jun Mat Min Distress Signals 2 | . 2 . Communications Jammed . | . . . Distress Signals . | . . . Times Spotted 47 | . 25 22 Peak Tracking Total 17 | . 4 17 Tactical Retreats . | . . . Traps | -11 -10 -10 ------- Run | Jun Mat Min Traps Triggered 2 | . 2 . Indirectly . | . . . Trap Hack Attempts . | . . . Triggered . | . . . Disarmed . | . . . Reprogrammed . | . . . Reused . | . . . Traps Extracted . | . . . Installed . | . . . Triggered . | . . . Machines | -11 -10 -10 ---------- Run | Jun Mat Min Machines Disabled . | . . . Max in Single Turn . | . . . Machines Repaired . | . . . Machines Sabotaged . | . . . Overloaded Fab Kills . | . . . Hacking | -11 -10 -10 --------- Run | Jun Mat Min Machines Accessed 6 | . 6 . Terminals 5 | . 5 . Fabricators . | . . . Repair Stations 1 | . 1 . Recycling Units . | . . . Scanalyzers . | . . . Garrison Access . | . . . Total Hacks 17 | . 17 . Successful 7 | . 7 . Failed 10 | . 10 . Catastrophic 1 | . 1 . Database Lockouts . | . . . Manual 12 | . 12 . Terminals 13 | . 13 . Fabricators . | . . . Repair Stations 4 | . 4 . Recycling Units . | . . . Scanalyzers . | . . . Garrison Access . | . . . Terminal Hacks 1 | . 1 . Part Schematic 1 | . 1 . Fabricator Hacks . | . . . Repair Station Hacks 4 | . 4 . Scan Component 2 | . 2 . Repair 2 | . 2 . Recycling Unit Hacks . | . . . Scanalyzer . | . . . Garrison Access Hacks . | . . . Unauthorized Hacks 2 | . 2 . Terminals 2 | . 2 . Botnet 2 | . 2 . Fabricators . | . . . Repair Stations . | . . . Recycling Units . | . . . Scanalyzers . | . . . Garrison Access . | . . . Data Cores Recovered . | . . . Used . | . . . Hacking Detections 6 | . 6 . Full Trace Events 1 | . 1 . Feedback Events . | . . . Feedback Blocked . | . . . Robot Schematics Acquired . | . . . Robots Built . | . . . Authchips . | . . . Time . | . . . Total Robot Build Rating . | . . . Part Schematics Acquired 1 | . 1 . Parts Built . | . . . Authchips . | . . . Time . | . . . Total Part Build Rating . | . . . Parts Repaired 2 | . 2 . Time 52 | . 52 . Parts Recycled . | . . . Recycled Matter . | . . . Retrieved Matter . | . . . Retrieved Components . | . . . Parts Scanalyzed . | . . . Part Schematics Acquired . | . . . Parts Damaged . | . . . Bothacking | -11 -10 -10 ------------ Run | Jun Mat Min Used RIF Installer . | . . . Robots Hacked . | . . . Non-combat . | . . . Combat . | . . . Robot Hacks Applied . | . . . Relay Couplers Released . | . . . Fabnet Peak Effective % . | . . . Robots Rewired . | . . . Allies Hacked . | . . . Hacks Repelled . | . . . Allies | -11 -10 -10 -------- Run | Jun Mat Min Total Allies . | . . . Largest Group . | . . . Highest-Rated Group . | . . . Highest-Rated Ally . | . . . Total Orders . | . . . Ally Attacks . | . . . Total Damage . | . . . Kills . | . . . Allies Corrupted . | . . . Allies Melted . | . . . Intel | -11 -10 -10 ------- Run | Jun Mat Min Robot Analysis Total . | . . . Derelict Logs Recovered 1 | . . 1 Drone Launches . | . . . Drone Recoveries . | . . . Exploration | -11 -10 -10 ------------- Run | Jun Mat Min Turns Passed 2162 | 202 1418 542 Spaces Moved 1075 | 89 730 256 Core 5 | 5 . . Treads 1070 | 84 730 256 Legs . | . . . Wheels . | . . . Hover . | . . . Flight . | . . . Fastest Speed 50 | 50 160 160 Average Speed 159 | 153 160 161 Slowest Speed 240 | 160 160 240 Overloaded Moves . | . . . Propulsion Burnouts . | . . . Robots Hopped . | . . . Cave-ins Triggered . | . . . Exploration Rate (%) 55 | 6 97 62 Regions Visited 2 Branch Regions 1 Pre-discovered Areas . | . . . Known Exits Taken . | . . . Unknown Exits Taken 2 | 1 1 . Scrap Searched 1 | . . 1 Spaces Dug 12 | . . 12 Terrain Destroyed 69 | . 15 54 Melee . | . . . Projectile . | . . . AOE 69 | . 15 54 Terrain Rammed . | . . . Walls Destroyed . | . . . Machines Disabled . | . . . Actions | -11 -10 -10 --------- Run | Jun Mat Min Total 1366 | 120 907 339 Wait 150 | 3 104 43 Move 1073 | 88 729 256 Hop . | . . . Pick Up 15 | 5 9 1 Fast Attach 10 | 7 3 . Attach 6 | . . 6 Detach . | . . . Swap 20 | . 10 10 Drop 6 | . 6 . Fire 78 | 17 39 22 Melee . | . . . Ram . | . . . Kick . | . . . Crush 8 | . 7 1 Escape Stasis . | . . . Rewire . | . . . Trap . | . . . Miscellaneous . | . . . Route ------- -11/Junkyard -10/Materials (discovered 5 exits: [*Mat x2] / [*Min x2] / [*Sub]) -10/Mines (discovered 1 exit: [*Mat]) History --------- Turn | Location | Event 5 | -11/Junkyard | Discovered new exit (range 16) 203 | -11/Junkyard | Entered Materials 318 | -10/Materials | Build established: Mutant 468 | -10/Materials | Discovered new exit (range 5) 577 | -10/Materials | Discovered new exit (range 16) 903 | -10/Materials | Discovered new exit (range 14) 941 | -10/Materials | Discovered new exit (range 10) 1187 | -10/Materials | Discovered new exit (range 11) 1522 | -10/Materials | Repaired Assault Rifle 1549 | -10/Materials | Repaired Lgt. Treads 1621 | -10/Materials | Entered Mines 1650 | -10/Mines | Discovered new exit (range 7) 1874 | -10/Mines | Learned 2 Materials zone layouts 1886 | -10/Mines | Assembled infested the area 1938 | -10/Mines | Destroyed 15 combat bots 1974 | -10/Mines | Core integrity fell below 50% 2161 | -10/Mines | Core integrity fell below 20% 2163 | -10/Mines | Destroyed by D-53 Grenadier with Mini Grenade Launcher Last Messages --------------- 02053_ U-05 Engineer lays Concrete. 02118_ K-01 Serf collects debris. 02137_ Acquired 16 matter. 02139_ K-01 Serf collects debris. 02145_ R-06 Scavenger destroyed. 02146_ K-01 Serf collects debris. 02150_ Lgt. Treads destroyed. 02150_ K-01 Serf collects debris. 02152_ Imp. Ion Engine destroyed. 02154_ Assault Rifle destroyed. 02156_ K-01 Serf collects debris. 02156_ Weapon Shielding destroyed. 02158_ Lgt. Treads destroyed. 02158_ Grenade Launcher destroyed. 02158_ K-01 Serf collects debris. 02160_ Lgt. Treads destroyed. 02160_ U-05 Engineer lays Concrete. 02162_ Imp. Ion Engine destroyed. 02162_ Grenade Launcher destroyed. 02162_ K-01 Serf collects debris. Map ----- +----------------------------------------------------+ | ?????????????## ##???????##????????????????? | | ??????????????## ##????????????????????????? | | ???????????????# ###??????????????????????? | | ??????????###### #??????????????????????? | | ??????????# #?????????????????????? | | ??????????# ##### ## #?????????????????????? | | ????#####?#!#???####?# #?????????????????????? | | ?#### ###%#?????????# #?????????????????????? | | ## ##=####???????# ##?????????????????????? | | # !! #!## ###?????? ##??????????????????????? | | # !! * #?????? #???????????????????????? | | # ! #???????#???????????????????????? | | # # # #???????????????????????????????? | | # # #???????????????????????????????? | | # # # #??????????##???????????????????? | | ###### #%## #?????????? #??????#????????????? | | ?????## # ! #?????????? #????? ?????????????? | | ?????#### ##???????? #???? ??????????????? | | ???????# % # ##?????? #??? ???????????????? | | ??????## u ????? ### ????????????????? | | ??????# ##### ?????????????????? | | ??????# d d ??????????????????? | | ??????## k ##??????????????????? | | ???##### !u #??????????????????? | | ???# % =% #??????????????????? | | ???# [% k = @ #??????????????????? | | ???# ### = #??????????????????? | | #### #?# ##?????????????????? | | #?## ### #?????????????????? | | #??## ### #?????????????????? | | ######???# ####?## # #???????????????? | | #????????# ##?????##### #???????????????? | | #????????# #??????????###### %?????????????? | | #????????### #???????????????? ####????????????? | | #??????????# #?????????????????#???????????????? | | #??????????# #?????????????????????????????????? | | #??????????# #?????????????????????????????????? | | #??????????# #?????????????????????????????????? | | #???####???# #?????????????????????????????????? | | #??## ##### #?????????????????????????????????? | | #?## #?????????????????????????????????? | | ### #?????????????????????????????????? | | #######?????????????????????????????????? | | #???????????????????????????????????????? | | ## #???????????????????????????????????????? | | ?## ##???????????????????????????????????????? | | ??#######????????????????????????????????????????? | | ?????????????????????????????????????????????????? | | ?????????????????????????????????????????????????? | | | +----------------------------------------------------+ Best States ------------- Heat Dissipation 25 Energy Generation 12 Energy Capacity 265 Matter Stores 300 Matter Capacity 300 Sight Range 16 Terrain Scan Range 16 Terrain Scan Density 10 Weapon Shielding 33 Evasion (%) 40 Recoil Reduction 2 Item Schematics ----------------- Cargo Storage Unit | -10/Materials | Hacked Robot Schematics ------------------ None Fabricated ------------ Nothing Alien Tech Used ----------------- None Achievements -------------- None Challenges ------------ None Game ------ Seed MolecularHellfireFlakker Manual? 0 Play Time 00:15:36 Cumulative 429.1 hours Start 2023.09.22 @ 20:38:23 End 2023.09.25 @ 16:41:10 Sessions 3 Manual Loads 0 Difficulty Rogue Special Mode None Game No. 193 Rogue 193 Adventurer 0 Explorer 0 Win Type - Total 10 Types 7/0/1/1/0/0/0/1/0 Lore% 86 Gallery% 92 Achievement% 71 Wizard Run 0 Options --------- ASCII 1 Keyboard 1 Movement Vi Keybinds 0 Fullscreen 2 Font 14/SmallcapsGlow Map View 72x54 Tactical HUD 1 Map Filters NONE Filters NONE Steam 0 RUN: bb83e976-b4a2-4581-bc08-de8df612a430